fUSD/lending_fUSD_20260405
["ID","MTS","AMOUNT","RATE_DAILY","PERIOD"]
[419785076,1775378691247,-282.0,9.231e-05,2]
[419785077,1775378694896,9436.01,9.231e-05,2]
[419785078,1775378694920,10000.01,9.231e-05,2]
[419785079,1775378694945,10000.01,9.231e-05,2]
[419785080,1775378694968,10000.01,9.231e-05,2]
[419785081,1775378694993,10000.01,9.231e-05,2]
[419785082,1775378695018,10000.01,9.231e-05,2]
[419785083,1775378695042,10000.01,9.231e-05,2]
[419785084,1775378695064,10000.01,9.231e-05,2]
[419785085,1775378728586,2775.3,4.554e-05,2]
[419785086,1775378728800,2775.3,4.794e-05,2]
[419785087,1775378729570,2775.3,5.033e-05,2]
[419785088,1775378729627,2775.3,5.273e-05,2]
[419785089,1775378729686,2775.3,5.513e-05,2]
[419785090,1775378729758,2775.3,5.752e-05,2]
[419785091,1775378729842,2775.3,5.992e-05,2]
[419785092,1775378730028,2775.3,6.232e-05,2]
[419785093,1775378730211,2775.3,6.471e-05,2]
[419785094,1775378731619,2775.3,6.711e-05,2]
[419785095,1775378731679,2775.3,6.951e-05,2]
[419785096,1775378731744,2775.3,7.19e-05,2]
[419785097,1775378731793,2775.3,7.43e-05,2]
[419785098,1775378731852,2775.3,7.67e-05,2]
[419785099,1775378731909,2775.3,7.909e-05,2]
[419785106,1775378849132,-2775.3,8.149e-05,2]
[419785107,1775378849152,-266.0,8.149e-05,2]
[419785108,1775378849172,-250.0,8.269e-05,2]
[419785109,1775378849192,-2775.3,8.389e-05,2]
[419785110,1775378849556,-2775.3,8.628e-05,2]
[419785111,1775378849580,-300.0,8.867e-05,2]
[419785112,1775378849603,-2775.3,8.868e-05,2]
[419785113,1775378849624,-4669.54748588,8.964e-05,2]
[419785114,1775378849644,-250.0,8.964e-05,2]
[419785115,1775378849673,-2775.3,9.108e-05,2]
[419785116,1775378849699,-249.27,9.164e-05,2]
[419785117,1775378849720,-300.0,9.23e-05,2]
[419785118,1775378849743,-1200.0,9.23e-05,2]
[419785119,1775378849766,-300.0,9.23e-05,2]
[419785120,1775378849787,-300.0,9.23e-05,2]
[419785121,1775378849808,-19230.3851,9.231e-05,2]
[419785122,1775378849830,-33032.4137,9.231e-05,2]
[419785123,1775378849852,-4150.8528,9.231e-05,2]
[419785124,1775378849874,-5000.0,9.29e-05,2]
[419785125,1775378849895,-500.0,9.313e-05,2]
[419785126,1775378849916,-500.0,9.313e-05,2]
[419785127,1775378849937,-500.0,9.313e-05,2]
[419785128,1775378849958,-501.43135783,9.313e-05,2]
[419785129,1775378849979,-500.0,9.313e-05,2]
[419785130,1775378850000,-500.0,9.313e-05,2]
[419785131,1775378850021,-500.0,9.313e-05,2]
[419785132,1775378850041,-500.11329592,9.313e-05,2]
[419785133,1775378850062,-500.0,9.313e-05,2]
[419785134,1775378850084,-500.0,9.313e-05,2]
[419785135,1775378850104,-501.03587191,9.313e-05,2]
[419785136,1775378850129,-1200.0,9.329e-05,2]
[419785137,1775378850152,-150.0,9.329e-05,2]
[419785138,1775378850174,-500.0,9.33e-05,2]
[419785139,1775378850199,-500.0,9.33e-05,2]
[419785140,1775378850229,-500.0,9.33e-05,2]
[419785141,1775378850258,-500.0,9.33e-05,2]
[419785142,1775378850285,-500.0,9.33e-05,2]
[419785143,1775378850312,-500.0,9.33e-05,2]
[419785144,1775378850338,-500.0,9.33e-05,2]
[419785145,1775378850365,-500.0,9.33e-05,2]
[419785146,1775378850391,-500.0,9.33e-05,2]
[419785147,1775378850418,-500.0,9.33e-05,2]
[419785148,1775378850444,-500.0,9.33e-05,2]
[419785149,1775378850471,-500.0,9.33e-05,2]
[419785150,1775378850499,-500.0,9.33e-05,2]
[419785151,1775378850524,-500.0,9.33e-05,2]
[419785152,1775378850551,-500.0,9.33e-05,2]
[419785153,1775378850576,-500.0,9.33e-05,2]
[419785154,1775378850602,-500.0,9.33e-05,2]
[419785155,1775378850627,-500.0,9.33e-05,2]
[419785156,1775378850654,-500.0,9.33e-05,2]
[419785157,1775378850679,-500.0,9.33e-05,2]
[419785158,1775378850705,-500.0,9.33e-05,2]
[419785159,1775378850730,-500.0,9.33e-05,2]
[419785160,1775378850756,-500.0,9.33e-05,2]
[419785161,1775378850782,-500.0,9.33e-05,2]
[419785162,1775378850808,-500.0,9.33e-05,2]
[419785163,1775378850834,-500.0,9.33e-05,2]
[419785164,1775378850860,-500.0,9.33e-05,2]
[419785165,1775378850886,-228.36771842,9.33e-05,2]
[419785166,1775378850911,-500.0,9.33e-05,2]
[419785167,1775378850938,-500.0,9.33e-05,2]
[419785168,1775378850964,-500.0,9.33e-05,2]
[419785169,1775378850993,-500.0,9.33e-05,2]
[419785170,1775378851021,-500.0,9.33e-05,2]
[419785171,1775378851048,-500.0,9.33e-05,2]
[419785172,1775378851076,-500.0,9.33e-05,2]
[419785173,1775378851103,-500.0,9.33e-05,2]
[419785174,1775378851128,-500.0,9.33e-05,2]
[419785175,1775378851155,-500.0,9.33e-05,2]
[419785176,1775378851180,-500.0,9.33e-05,2]
[419785177,1775378851205,-500.0,9.33e-05,2]
[419785178,1775378851230,-372.83677184,9.33e-05,2]
[419785179,1775378851255,-500.0,9.33e-05,2]
[419785180,1775378851283,-500.0,9.33e-05,2]
[419785181,1775378851310,-409.477241,9.33e-05,2]
[419785182,1775378851339,-500.0,9.33e-05,2]
[419785183,1775378851364,-409.47724099,9.33e-05,2]
[419785184,1775378851390,-500.0,9.33e-05,2]
[419785185,1775378851415,-500.0,9.33e-05,2]
[419785186,1775378851439,-500.0,9.33e-05,2]
[419785187,1775378851464,-409.47724099,9.33e-05,2]
[419785188,1775378851489,-500.0,9.33e-05,2]
[419785189,1775378851515,-500.0,9.33e-05,2]
[419785190,1775378851542,-409.47724099,9.33e-05,2]
[419785191,1775378851569,-500.0,9.33e-05,2]
[419785192,1775378851598,-500.0,9.33e-05,2]
[419785193,1775378851627,-409.47724099,9.33e-05,2]
[419785194,1775378851654,-500.0,9.33e-05,2]
[419785195,1775378851681,-500.0,9.33e-05,2]
[419785196,1775378851705,-409.47724099,9.33e-05,2]
[419785197,1775378851731,-500.0,9.33e-05,2]
[419785198,1775378851756,-409.47724099,9.33e-05,2]
[419785199,1775378851780,-500.0,9.33e-05,2]
[419785200,1775378851804,-500.0,9.33e-05,2]
[419785201,1775378851829,-409.47724099,9.33e-05,2]
[419785202,1775378851855,-500.0,9.33e-05,2]
[419785203,1775378851879,-500.0,9.33e-05,2]
[419785204,1775378851904,-500.0,9.33e-05,2]
[419785205,1775378851930,-409.47724099,9.33e-05,2]
[419785206,1775378851955,-500.0,9.33e-05,2]
[419785207,1775378851980,-500.0,9.33e-05,2]
[419785208,1775378852005,-409.47724099,9.33e-05,2]
[419785209,1775378852031,-500.0,9.33e-05,2]
[419785210,1775378852058,-500.0,9.33e-05,2]
[419785211,1775378852085,-409.47724099,9.33e-05,2]
[419785212,1775378852111,-500.0,9.33e-05,2]
[419785213,1775378852137,-500.0,9.33e-05,2]
[419785214,1775378852163,-409.47724099,9.33e-05,2]
[419785215,1775378852191,-500.0,9.33e-05,2]
[419785216,1775378852218,-500.0,9.33e-05,2]
[419785217,1775378852246,-566.08582332,9.33e-05,2]
[419785218,1775378852271,-500.0,9.33e-05,2]
[419785219,1775378852299,-500.0,9.33e-05,2]
[419785220,1775378852327,-566.08582332,9.33e-05,2]
[419785221,1775378852353,-783.04291166,9.33e-05,2]
[419785222,1775378852380,-783.04291166,9.33e-05,2]
[419785223,1775378852406,-210429.51573835,9.331e-05,2]
[419785228,1775378905616,-300.0,9.23e-05,2]
[419785229,1775378905641,-300.0,9.23e-05,2]
[419785230,1775378905665,-150.0,9.23e-05,2]
[419785231,1775378905688,-250.0,9.23e-05,2]
[419785232,1775378905712,-9000.0,9.231e-05,2]
[419785233,1775378906037,170.75,7.702e-05,2]
[419785234,1775378906860,-170.75,8.986e-05,2]
[419785235,1775378906880,-9829.25,9.231e-05,2]
[419785236,1775378907249,-10000.0,9.231e-05,2]
[419785237,1775378907694,-10000.0,9.231e-05,2]
[419785238,1775378908106,-10000.0,9.231e-05,2]
[419785239,1775378908768,-10000.0,9.231e-05,2]
[419785240,1775378909130,-10000.0,9.231e-05,2]
[419785241,1775378909577,-10000.0,9.231e-05,2]
[419785242,1775378910009,-10000.0,9.231e-05,2]
[419785243,1775378910539,-9837.2151,9.231e-05,2]
[419785244,1775378910559,-162.7849,9.231e-05,2]
[419785245,1775378910933,-5029.3018,9.231e-05,2]
[419785246,1775378910953,-500.0,9.313e-05,2]
[419785247,1775378910974,-500.0,9.313e-05,2]
[419785248,1775378910996,-613.92735665,9.33e-05,2]
[419785249,1775378911018,-3356.77084335,9.331e-05,2]
[419785250,1775378911473,-10000.0,9.331e-05,2]
[419785251,1775378912082,-10000.0,9.331e-05,2]
[419785252,1775378913498,-10000.0,9.331e-05,2]
[419785253,1775378913810,-10000.0,9.331e-05,2]
[419785254,1775378913860,-10000.0,9.331e-05,2]
[419785255,1775378914245,-10000.0,9.331e-05,2]
[419785256,1775378914773,-10000.0,9.331e-05,2]
[419785257,1775378915511,-10000.0,9.331e-05,2]
[419785258,1775378915893,-10000.0,9.331e-05,2]
[419785259,1775378916392,-10000.0,9.331e-05,2]
[419785260,1775378916809,-10000.0,9.331e-05,2]
[419785261,1775378917159,-10000.0,9.331e-05,2]
[419785262,1775378917637,-10000.0,9.331e-05,2]
[419785263,1775378918455,-10000.0,9.331e-05,2]
[419785264,1775378918510,-10000.0,9.331e-05,2]
[419785265,1775378918816,-10000.0,9.331e-05,2]
[419785266,1775378919199,-10000.0,9.331e-05,2]
[419785267,1775378919594,-10000.0,9.331e-05,2]
[419785268,1775378920016,-10000.0,9.331e-05,2]
[419785269,1775378920535,-10000.0,9.331e-05,2]
[419785270,1775378921001,-10000.0,9.331e-05,2]
[419785271,1775378922291,-10000.0,9.331e-05,2]
[419785275,1775378948933,-500.0,9.13e-05,2]
[419785276,1775378948956,-9500.0,9.231e-05,2]
[419785277,1775378954160,-2748.0,9.231e-05,2]
[419785278,1775378966984,400.0,8.9e-05,3]
[419785280,1775378970181,900.0,9e-05,3]
[419785293,1775379031584,-1200.0,9.189e-05,2]
[419785294,1775379031594,-300.0,9.189e-05,2]
[419785295,1775379031603,-167.75473326,9.19e-05,2]
[419785296,1775379031615,-2174.50212326,9.19e-05,2]
[419785297,1775379031658,-1019.1497,9.19e-05,2]
[419785298,1775379031682,-491.5847794,9.19e-05,2]
[419785299,1775379031693,-882.31924771,9.19e-05,2]
[419785300,1775379031704,-3331.55408255,9.19e-05,2]
[419785301,1775379031717,-536668.76330526,9.19e-05,2]
[419785302,1775379031728,-81021.70039618,9.19e-05,2]
[419785303,1775379031740,-7225.15877897,9.19e-05,2]
[419785304,1775379031752,-100568.89817954,9.19e-05,2]
[419785305,1775379031764,-1254.41808677,9.19e-05,2]
[419785306,1775379031789,-2600.0,9.19e-05,2]
[419785322,1775379037738,-3460.0,9.19e-05,2]
[419785323,1775379037758,-41204.37228058,9.19e-05,2]
[419785380,1775379038785,-373377.33390652,9.19e-05,2]
[419785383,1775379038799,-20784.4137,9.231e-05,2]
[419785385,1775379038809,-8001.4404,9.231e-05,2]
[419785387,1775379038818,-500.0,9.313e-05,2]
[419785389,1775379038828,-500.0,9.313e-05,2]
[419785391,1775379038837,-1200.0,9.329e-05,2]
[419785393,1775379038847,-193.0,9.33e-05,2]
[419785395,1775379038856,-5000.0,9.33e-05,2]
[419785397,1775379038866,-415.31553778,9.33e-05,2]
[419785399,1775379038875,-3634.19823712,9.331e-05,2]
[419785401,1775379038885,-1752.27845808,9.331e-05,2]
[419785403,1775379038895,-290.25550646,9.364e-05,2]
[419785405,1775379038904,-2370.20426734,9.364e-05,2]
[419785407,1775379038913,-166.66,9.367e-05,2]
[419785409,1775379038922,-250.0,9.371e-05,2]
[419785411,1775379038932,-153.40766799,9.46e-05,2]
[419785413,1775379038942,-14111.56,9.604e-05,2]
[419785415,1775379038951,-999.99,9.604e-05,2]
[419785417,1775379038960,-9999.99,9.604e-05,2]
[419785419,1775379038970,-1852.42,9.627e-05,2]
[419785421,1775379038980,-166.66,9.676e-05,2]
[419785423,1775379038989,-305.0,9.753e-05,2]
[419785426,1775379038998,-2688.3,9.817e-05,2]
[419785428,1775379039008,-150.99,9.817e-05,2]
[419785430,1775379039018,-9999.99,9.817e-05,2]
[419785432,1775379039027,-299.99,9.817e-05,2]
[419785434,1775379039036,-351.47,9.817e-05,2]
[419785436,1775379039046,-8076.76,9.817e-05,2]
[419785438,1775379039055,-1620.86,9.817e-05,2]
[419785440,1775379039065,-9999.99,9.817e-05,2]
[419785442,1775379039075,-1557.38,9.817e-05,2]
[419785444,1775379039084,-150.99,9.817e-05,2]
[419785446,1775379039094,-23359.22,9.817e-05,2]
[419785448,1775379039103,-5379.83,9.817e-05,2]
[419785450,1775379039113,-2175.77,9.817e-05,2]
[419785452,1775379039122,-9999.99,9.817e-05,2]
[419785454,1775379039132,-1528.7,9.837e-05,2]
[419785456,1775379039141,-2652.99918064,9.837e-05,2]
[419785459,1775379039154,-1209.51188107,9.837e-05,2]
[419785465,1775379039202,-767.54052114,9.837e-05,2]
[419785467,1775379039213,-369.93841715,9.837e-05,2]
[419785469,1775379039222,-1549.98,9.837e-05,2]
[419785471,1775379039232,-356.07,9.837e-05,2]
[419785473,1775379039241,-1000.0,9.861e-05,2]
[419785475,1775379039250,-1000.0,9.861e-05,2]
[419785477,1775379039259,-1000.0,9.861e-05,2]
[419785479,1775379039268,-1004.37751959,9.861e-05,2]
[419785481,1775379039279,-500.0,9.952e-05,2]
[419785483,1775379039288,-845.19145481,9.952e-05,2]
[419785486,1775379039301,-5085.88,9.952e-05,2]
[419785488,1775379039311,-9999.99,9.952e-05,2]
[419785489,1775379039321,-1191.29403379,9.958e-05,2]
[419785491,1775379039331,-166.66,9.985e-05,2]
[419785493,1775379039340,-329.84,0.0001,2]
[419785495,1775379039349,-184.77251491,0.0001,2]
[419785496,1775379039359,-195.85,0.0001,2]
[419785498,1775379039368,-216.47,0.0001,2]
[419785500,1775379039378,-984.15,0.0001,2]
[419785502,1775379039387,-21352.0,0.0001,2]
[419785504,1775379039397,-500.0,0.0001,2]
[419785505,1775379039406,-500.0,0.0001,2]
[419785546,1775379039914,-500.0,0.0001,2]
[419785547,1775379039923,-500.0,0.0001,2]
[419785549,1775379039933,-500.0,0.0001,2]
[419785551,1775379039942,-500.0,0.0001,2]
[419785553,1775379039951,-500.0,0.0001,2]
[419785555,1775379039960,-500.0,0.0001,2]
[419785557,1775379039969,-200.0,0.0001,2]
[419785558,1775379039978,-500.0,0.0001,2]
[419785560,1775379039988,-500.0,0.0001,2]
[419785562,1775379039998,-500.0,0.0001,2]
[419785564,1775379040007,-151.0,0.0001,2]
[419785565,1775379040016,-500.0,0.0001,2]
[419785567,1775379040026,-151.0,0.0001,2]
[419785569,1775379040037,-500.0,0.0001,2]
[419785571,1775379040046,-151.0,0.0001,2]
[419785572,1775379040056,-500.0,0.0001,2]
[419785574,1775379040065,-151.0,0.0001,2]
[419785576,1775379040075,-500.0,0.0001,2]
[419785578,1775379040085,-151.0,0.0001,2]
[419785579,1775379040094,-500.0,0.0001,2]
[419785581,1775379040104,-151.0,0.0001,2]
[419785583,1775379040113,-500.0,0.0001,2]
[419785585,1775379040122,-151.0,0.0001,2]
[419785587,1775379040131,-594.61806827,0.0001,2]
[419785588,1775379040141,-151.0,0.0001,2]
[419785590,1775379040150,-151.0,0.0001,2]
[419785592,1775379040159,-151.0,0.0001,2]
[419785594,1775379040168,-151.0,0.0001,2]
[419785596,1775379040177,-151.0,0.0001,2]
[419785598,1775379040187,-151.0,0.0001,2]
[419785600,1775379040196,-151.0,0.0001,2]
[419785601,1775379040205,-151.0,0.0001,2]
[419785603,1775379040214,-151.0,0.0001,2]
[419785605,1775379040224,-151.0,0.0001,2]
[419785607,1775379040234,-151.0,0.0001,2]
[419785609,1775379040243,-151.0,0.0001,2]
[419785611,1775379040252,-151.0,0.0001,2]
[419785613,1775379040261,-151.0,0.0001,2]
[419785614,1775379040270,-151.0,0.0001,2]
[419785616,1775379040280,-151.0,0.0001,2]
[419785618,1775379040289,-151.0,0.0001,2]
[419785620,1775379040298,-151.0,0.0001,2]
[419785622,1775379040307,-151.0,0.0001,2]
[419785624,1775379040324,-151.0,0.0001,2]
[419785626,1775379040336,-151.0,0.0001,2]
[419785628,1775379040347,-151.0,0.0001,2]
[419785630,1775379040356,-151.0,0.0001,2]
[419785632,1775379040366,-151.0,0.0001,2]
[419785633,1775379040375,-1386.78395259,0.0001,2]
[419785635,1775379040385,-151.0,0.0001,2]
[419785637,1775379040394,-151.0,0.0001,2]
[419785639,1775379040404,-811.94017058,0.0001,2]
[419785640,1775379040413,-230.12771803,0.0001,2]
[419785642,1775379040423,-308.52032275,0.0001,2]
[419785644,1775379040433,-842.97786219,0.0001,2]
[419785646,1775379040443,-250.0,0.00010043,2]
[419785648,1775379040453,-1680.0,0.00010108,2]
[419785649,1775379040462,-5000.0,0.00010109,2]
[419785651,1775379040472,-193.0,0.00010109,2]
[419785653,1775379040482,-255.0,0.00010153,2]
[419785655,1775379040492,-250.0,0.00010153,2]
[419785657,1775379040501,-3541.4942326,0.00010154,2]
[419785659,1775379040510,-5533.0,0.000102,3]
[419785661,1775379040520,-500.0,0.00010226,2]
[419785662,1775379040529,-193.0,0.00010262,2]
[419785664,1775379040539,-5000.0,0.00010262,2]
[419785665,1775379040548,-170.75,0.00010269,2]
[419785666,1775379040558,-984.15,0.00010274,2]
[419785667,1775379040568,-166.66,0.00010294,2]
[419785668,1775379040578,-151.0,0.00010397,2]
[419785669,1775379040587,-457.44,0.00010398,2]
[419785670,1775379040596,-5533.0,0.000104,5]
[419785671,1775379040606,-1500.0,0.00010408,2]
[419785672,1775379040615,-501.80754562,0.00010408,2]
[419785673,1775379040625,-1500.0,0.00010408,2]
[419785674,1775379040634,-329.84,0.00010432,2]
[419785675,1775379040644,-500.0,0.000105,2]
[419785676,1775379040653,-984.15,0.00010548,2]
[419785678,1775379040662,-200.0,0.00010548,2]
[419785680,1775379040671,-1438.09495884,0.00010548,2]
[419785682,1775379040680,-166.66,0.00010603,2]
[419785684,1775379040693,-266.0,0.00010743,2]
[419785686,1775379040703,-475.3894655,0.00010774,2]
[419785688,1775379040713,-457.0,0.0001078,2]
[419785690,1775379040722,-984.15,0.00010822,2]
[419785692,1775379040733,-329.84,0.00010863,2]
[419785693,1775379040742,-1400.0,0.000109,3]
[419785694,1775379040752,-166.66,0.00010912,2]
[419785695,1775379040761,-1191.29403377,0.00010948,2]
[419785696,1775379040771,-1675.0,0.00010956,2]
[419785697,1775379040781,-2000.0,0.00010956,2]
[419785698,1775379040791,-2000.0,0.00010956,2]
[419785699,1775379040801,-502.00598187,0.00010959,2]
[419785700,1775379040811,-150.0,0.00010959,2]
[419785701,1775379040820,-1863.0,0.00010978,2]
[419785702,1775379040830,-3850.4575,0.00010999,2]
[419785703,1775379040839,-549.0,0.00011,2]
[419785704,1775379040848,-314.13,0.00011047,2]
[419785705,1775379040858,-500.0,0.00011073,2]
[419785706,1775379040867,-984.15,0.00011096,2]
[419785707,1775379040876,-200.0,0.00011096,2]
[419785708,1775379040886,-1491.30447232,0.00011096,2]
[419785709,1775379040895,-29120.88849862,0.00011099,2]
[419785710,1775379040910,-681.09280851,0.00011099,2]
[419785711,1775379041777,-171.08334184,0.00011099,2]
[419785712,1775379041801,-11006.2723645,0.00011099,2]
[419785713,1775379041810,-40979.33701341,0.00011099,2]
[419785714,1775379041819,-40979.33701341,0.00011099,2]
[419785715,1775379041829,-2351.0,0.00011119,2]
[419785716,1775379041839,-433.0,0.00011168,2]
[419785717,1775379041848,-4511.57,0.00011227,2]
[419785718,1775379041858,-9999.99,0.00011281,2]
[419785719,1775379041867,-18883.81,0.00011281,2]
[419785720,1775379041876,-29999.99,0.00011281,2]
[419785721,1775379041885,-329.84,0.00011295,2]
[419785722,1775379041894,-984.15,0.0001137,2]
[419785723,1775379041904,-14673.0,0.00011479,2]
[419785724,1775379041913,-500.0,0.00011504,2]
[419785725,1775379041922,-2500.0,0.00011504,2]
[419785726,1775379041932,-40979.33701341,0.0001154,2]
[419785727,1775379041941,-170.75,0.00011553,2]
[419785728,1775379041950,-3880.3,0.00011621,2]
[419785729,1775379041960,-1000.0,0.00011621,2]
[419785730,1775379041969,-984.15,0.00011644,2]
[419785731,1775379041978,-203.96604798,0.00011644,2]
[419785732,1775379041987,-1546.48273779,0.00011644,2]
[419785733,1775379041996,-296.86,0.000117,2]
[419785734,1775379042006,-329.84,0.00011727,2]
[419785735,1775379042015,-984.15,0.00011918,2]
[419785736,1775379042024,-1191.29403377,0.00011939,2]
[419785737,1775379042034,-1915.04157441,0.00012052,2]
[419785738,1775379042043,-275.983908,0.00012133,2]
[419785739,1775379042052,-250.0,0.00012143,2]
[419785740,1775379042062,-329.84,0.00012158,2]
[419785741,1775379042071,-1108.3186174,0.00012168,2]
[419785742,1775379042082,-296.86,0.00012173,2]
[419785743,1775379042091,-984.15,0.00012192,2]
[419785744,1775379042101,-1339.48329415,0.00012192,2]
[419785745,1775379042111,-2000.0,0.00012199,2]
[419785746,1775379042120,-2000.0,0.00012199,2]
[419785747,1775379042129,-2000.0,0.00012199,2]
[419785748,1775379042138,-2000.0,0.00012199,2]
[419785749,1775379042147,-2000.0,0.00012199,2]
[419785750,1775379042157,-2000.0,0.00012199,2]
[419785751,1775379042166,-2000.0,0.00012199,2]
[419785752,1775379042175,-2000.0,0.00012199,2]
[419785753,1775379042185,-2000.0,0.00012199,2]
[419785754,1775379042194,-2000.0,0.00012199,2]
[419785755,1775379042203,-2000.0,0.00012199,2]
[419785756,1775379042212,-2000.0,0.00012199,2]
[419785757,1775379042222,-2000.0,0.00012199,2]
[419785758,1775379042231,-2000.0,0.00012199,2]
[419785759,1775379042241,-2000.0,0.00012199,2]
[419785760,1775379042250,-2000.0,0.00012199,2]
[419785761,1775379042259,-2000.0,0.00012199,2]
[419785762,1775379042268,-2000.0,0.00012199,2]
[419785763,1775379042278,-2000.0,0.00012199,2]
[419785764,1775379042287,-2000.0,0.00012199,2]
[419785765,1775379042296,-12136.91,0.00012212,2]
[419785766,1775379042306,-3292.0,0.00012231,2]
[419785767,1775379042316,-40979.33701341,0.00012267,2]
[419785768,1775379042325,-736.0,0.00012285,2]
[419785769,1775379042335,-2000.0,0.00012338,2]
[419785770,1775379042344,-2000.0,0.00012338,2]
[419785771,1775379042354,-2000.0,0.00012338,2]
[419785772,1775379042363,-2000.0,0.00012338,2]
[419785773,1775379042372,-2000.0,0.00012338,2]
[419785774,1775379042382,-2000.0,0.00012338,2]
[419785775,1775379042391,-2000.0,0.00012338,2]
[419785776,1775379042400,-2000.0,0.00012338,2]
[419785777,1775379042410,-2000.0,0.00012338,2]
[419785779,1775379042419,-2000.0,0.00012338,2]
[419785780,1775379042428,-2000.0,0.00012338,2]
[419785781,1775379042438,-2000.0,0.00012338,2]
[419785782,1775379042447,-2000.0,0.00012338,2]
[419785783,1775379042456,-2000.0,0.00012338,2]
[419785784,1775379042466,-2000.0,0.00012338,2]
[419785785,1775379042476,-2000.0,0.00012338,2]
[419785786,1775379042486,-2000.0,0.00012338,2]
[419785787,1775379042495,-2000.0,0.00012338,2]
[419785788,1775379042504,-2000.0,0.00012338,2]
[419785789,1775379042514,-2000.0,0.00012338,2]
[419785790,1775379042524,-3312.76020208,0.00012381,2]
[419785791,1775379042533,-160.0,0.00012409,2]
[419785792,1775379042544,-984.15,0.00012466,2]
[419785793,1775379042554,-552.12670035,0.00012492,2]
[419785794,1775379042563,-2000.0,0.00012562,2]
[419785795,1775379042573,-2000.0,0.00012562,2]
[419785796,1775379042584,-2000.0,0.00012562,2]
[419785797,1775379042595,-2000.0,0.00012562,2]
[419785798,1775379042606,-2000.0,0.00012562,2]
[419785799,1775379042616,-2000.0,0.00012562,2]
[419785800,1775379042626,-2000.0,0.00012562,2]
[419785801,1775379042636,-2000.0,0.00012562,2]
[419785802,1775379042646,-2000.0,0.00012562,2]
[419785803,1775379042657,-2000.0,0.00012562,2]
[419785804,1775379042667,-2000.0,0.00012562,2]
[419785805,1775379042677,-552.12670035,0.00012616,2]
[419785806,1775379042687,-811.94017057,0.0001263,2]
[419785807,1775379042697,-296.86,0.00012646,2]
[419785808,1775379042706,-6777.281218,0.00012733,2]
[419785809,1775379042716,-1624.016839,0.00012733,2]
[419785810,1775379042727,-8761.908861,0.00012733,2]
[419785811,1775379042737,-151.0,0.00012739,2]
[419785812,1775379042746,-552.12670035,0.00012739,2]
[419785813,1775379042756,-984.15,0.0001274,2]
[419785814,1775379042765,-879.65842586,0.00012887,2]
[419785815,1775379042775,-1191.29403377,0.00012929,2]
[419785816,1775379042784,-40979.33701341,0.00012993,2]
[419785817,1775379042794,-250.0,0.00013,2]
[419785818,1775379042803,-984.24971614,0.00013014,2]
[419785819,1775379042814,-329.84,0.00013021,2]
[419785820,1775379042823,-500.0,0.00013096,2]
[419785821,1775379042833,-508.0,0.00013111,2]
[419785822,1775379042843,-296.86,0.0001312,2]
[419785823,1775379042853,-1148.83,0.000132,2]
[419785824,1775379042862,-213.86,0.00013219,2]
[419785825,1775379042872,-1051.429062,0.00013263,2]
[419785826,1775379042882,-158.47,0.00013313,2]
[419785827,1775379042891,-457.44,0.00013326,2]
[419785828,1775379042902,-217.7,0.00013424,2]
[419785829,1775379042912,-329.84,0.00013453,2]
[419785830,1775379042921,-4609.0,0.00013454,2]
[419785831,1775379042931,-160.63,0.00013496,2]
[419785832,1775379042942,-10000.0,0.00013498,2]
[419785833,1775379042951,-1252.0,0.00013513,2]
[419785834,1775379042960,-3000.0,0.00013534,2]
[419785835,1775379042970,-296.86,0.00013593,2]
[419785836,1775379042979,-274.57636762,0.00013599,2]
[419785837,1775379042989,-181.43578347,0.00013641,2]
[419785838,1775379042998,-314.13,0.00013652,2]
[419785839,1775379043008,-3225.33480356,0.00013652,2]